Workbook

Sheet 5 Year Projections
D2: Five Year Projections
D3: This worksheet estimates the key financial figures for a company over five years. The projections include abbreviated income and cash flow statements, and a balance sheet.
D6: Years | F6: 2005 | G6: =F6+1 -> 2006 | H6: =G6+1 -> 2007 | I6: =H6+1 -> 2008 | J6: =I6+1 -> 2009
D7: Income Statement
D8: Net sales | F8: $43,300 | G8: $67,900 | H8: $77,300 | I8: $80,200 | J8: $88,100
D9: Cost of goods sold | F9: $24,100 | G9: $24,600 | H9: $20,800 | I9: $21,900 | J9: $39,500
D10: Net Operating Income | F10: =IF(OR(F8<>0,F9),F8-F9,"") -> $19,200 | G10: =IF(OR(G8<>0,G9),G8-G9,"") -> $43,300 | H10: =IF(OR(H8<>0,H9),H8-H9,"") -> $56,500 | I10: =IF(OR(I8<>0,I9),I8-I9,"") -> $58,300 | J10: =IF(OR(J8<>0,J9),J8-J9,"") -> $48,600
D11: Operating expenses | F11: $3,500 | G11: $3,900 | H11: $2,100 | I11: $3,000 | J11: $3,600
E12: Net Income | F12: =IF(OR(F10<>0,F11),F10-F11,"") -> $15,700 | G12: =IF(OR(G10<>0,G11),G10-G11,"") -> $39,400 | H12: =IF(OR(H10<>0,H11),H10-H11,"") -> $54,400 | I12: =IF(OR(I10<>0,I11),I10-I11,"") -> $55,300 | J12: =IF(OR(J10<>0,J11),J10-J11,"") -> $45,000
D15: Cash Flow Statement
D16: Beginning balance | F16: $14,500 | G16: =IF(F19,F19,"") -> $13,300 | H16: =IF(G19,G19,"") -> $15,500 | I16: =IF(H19,H19,"") -> $18,000 | J16: =IF(I19,I19,"") -> $20,000
D17: Cash inflow | F17: $7,000 | G17: $7,600 | H17: $9,400 | I17: $9,900 | J17: $7,000
D18: Cash outflow | F18: ($8,200) | G18: ($5,400) | H18: ($6,900) | I18: ($7,900) | J18: ($8,900)
E19: Ending Cash Balance | F19: =IF(SUM(F16:F18),SUM(F16:F18),"") -> $13,300 | G19: =IF(SUM(G16:G18),SUM(G16:G18),"") -> $15,500 | H19: =IF(SUM(H16:H18),SUM(H16:H18),"") -> $18,000 | I19: =IF(SUM(I16:I18),SUM(I16:I18),"") -> $20,000 | J19: =IF(SUM(J16:J18),SUM(J16:J18),"") -> $18,100
D22: Balance Sheet
D23: Cash | F23: =F19 -> $13,300 | G23: =G19 -> $15,500 | H23: =H19 -> $18,000 | I23: =I19 -> $20,000 | J23: =J19 -> $18,100
D24: Accounts receivable | F24: $17,600 | G24: $13,800 | H24: $19,800 | I24: $19,500 | J24: $21,800
D25: Inventory | F25: $6,300 | G25: $8,200 | H25: $9,300 | I25: $9,400 | J25: $11,200
D26: Prepaid expenses | F26: $5,700 | G26: $6,300 | H26: $5,800 | I26: $3,200 | J26: $2,700
E27: Total Current Assets | F27: =IF(SUM(F23:F26),SUM(F23:F26),"") -> $42,900 | G27: =IF(SUM(G23:G26),SUM(G23:G26),"") -> $43,800 | H27: =IF(SUM(H23:H26),SUM(H23:H26),"") -> $52,900 | I27: =IF(SUM(I23:I26),SUM(I23:I26),"") -> $52,100 | J27: =IF(SUM(J23:J26),SUM(J23:J26),"") -> $53,800
D28: Fixed assets | F28: $28,000 | G28: $30,500 | H28: $45,000 | I28: $43,000 | J28: $41,000
E29: Total Assets | F29: =IF(SUM(F27:F28),SUM(F27:F28),"") -> $70,900 | G29: =IF(SUM(G27:G28),SUM(G27:G28),"") -> $74,300 | H29: =IF(SUM(H27:H28),SUM(H27:H28),"") -> $97,900 | I29: =IF(SUM(I27:I28),SUM(I27:I28),"") -> $95,100 | J29: =IF(SUM(J27:J28),SUM(J27:J28),"") -> $94,800
D32: Accounts payable | F32: $6,400 | G32: $6,200 | H32: $9,800 | I32: $7,600 | J32: $8,200
D33: Short-term notes | F33: $5,700 | G33: $5,500 | H33: $4,800 | I33: $5,400 | J33: $7,700
D34: Accrued & other liabilities | F34: $2,300 | G34: $2,300 | H34: $3,000 | I34: $2,900 | J34: $2,700
E35: Total Current Liabilities | F35: =IF(SUM(F32:F34),SUM(F32:F34),"") -> $14,400 | G35: =IF(SUM(G32:G34),SUM(G32:G34),"") -> $14,000 | H35: =IF(SUM(H32:H34),SUM(H32:H34),"") -> $17,600 | I35: =IF(SUM(I32:I34),SUM(I32:I34),"") -> $15,900 | J35: =IF(SUM(J32:J34),SUM(J32:J34),"") -> $18,600
D36: Long-term debt | F36: $22,100 | G36: $23,700 | H36: $22,600 | I36: $21,800 | J36: $22,400
D37: Other long-term liabilities | F37: $1,400 | G37: $1,800 | H37: $1,400 | I37: $1,000 | J37: $1,700
E38: Total Long-term Liabilities | F38: =IF(SUM(F36:F37),SUM(F36:F37),"") -> $23,500 | G38: =IF(SUM(G36:G37),SUM(G36:G37),"") -> $25,500 | H38: =IF(SUM(H36:H37),SUM(H36:H37),"") -> $24,000 | I38: =IF(SUM(I36:I37),SUM(I36:I37),"") -> $22,800 | J38: =IF(SUM(J36:J37),SUM(J36:J37),"") -> $24,100
D39: Shareholders' equity | F39: =IF(OR(OR(F40<>0,F38),F35),F40-F38-F35,"") -> $33,000 | G39: =IF(OR(OR(G40<>0,G38),G35),G40-G38-G35,"") -> $34,800 | H39: =IF(OR(OR(H40<>0,H38),H35),H40-H38-H35,"") -> $56,300 | I39: =IF(OR(OR(I40<>0,I38),I35),I40-I38-I35,"") -> $56,400 | J39: =IF(OR(OR(J40<>0,J38),J35),J40-J38-J35,"") -> $52,100
D40: Total Liabilities and Equity | F40: =F29 -> $70,900 | G40: =G29 -> $74,300 | H40: =H29 -> $97,900 | I40: =I29 -> $95,100 | J40: =J29 -> $94,800
